bitfinex/quotes_ETHUSD_20250505
["timestamp","ask_amount","ask_price","bid_price","bid_amount"]
[1746487377636,7.75430658,1833.0,1832.8,0.13306051]
[1746487378349,5.45583501,1832.9,1832.8,0.13306051]
[1746487379946,7.75448179,1833.0,1832.8,0.13306051]
[1746487380251,9.37547155,1833.0,1832.8,0.13306051]
[1746487380544,14.83125269,1833.0,1832.8,0.13306051]
[1746487380747,9.37547155,1833.0,1832.8,0.13306051]
[1746487382144,14.83124026,1833.0,1832.8,0.13306051]
[1746487382345,5.45583501,1832.9,1832.8,0.13306051]
[1746487383163,5.4562632,1832.8,1832.5,5.2879]
[1746487383355,7.75500018,1832.8,1832.6,0.13604014]
[1746487384344,8.57610018,1832.8,1832.6,0.13604014]
[1746487390964,6.93913645,1832.9,1832.6,0.13604014]
[1746487395165,12.39520739,1832.9,1832.6,0.13604014]
[1746487395370,6.93913645,1832.9,1832.6,0.13604014]
[1746487395970,5.45554845,1833.0,1832.7,5.45632543]
[1746487396164,5.45554845,1833.0,1832.8,0.13239176]
[1746487396547,5.45554845,1833.0,1832.8,0.93759176]
[1746487399484,8.45525003,1833.1,1832.8,0.93759176]
[1746487401982,3.0,1833.1,1832.8,0.93759176]
[1746487402153,5.45583501,1832.9,1832.8,0.13239176]
[1746487402553,5.45583501,1832.9,1832.6,6.2338156]
[1746487402765,5.45583501,1832.9,1832.7,0.13144937]
[1746487402964,5.45583501,1832.9,1832.6,6.2338156]
[1746487403164,5.45583501,1832.9,1832.7,0.13144937]
[1746487403392,8.0545606,1833.0,1832.6,6.2338156]
[1746487403564,8.0545606,1833.0,1832.8,0.13105295]
[1746487403768,0.80545606,1832.9,1832.8,0.13105295]
[1746487403965,8.0545606,1833.0,1832.6,6.2338156]
[1746487404167,7.7545606,1833.0,1832.7,0.13144937]
[1746487404376,7.7545606,1833.0,1832.6,6.2338156]
[1746487404587,7.7545606,1833.0,1832.7,0.13144937]
[1746487405055,7.7545606,1833.0,1832.6,6.2338156]
[1746487405254,7.7545606,1833.0,1832.8,0.13105295]
[1746487405460,9.37555485,1833.0,1832.7,0.13144937]
[1746487405661,9.37555485,1833.0,1832.9,0.13065658]
[1746487405857,9.37555485,1833.0,1832.8,0.13105295]
[1746487406192,9.37555485,1833.0,1832.9,0.13065658]
[1746487406597,9.37555485,1833.0,1832.6,6.2338156]
[1746487406793,7.7545606,1833.0,1832.9,0.13065658]
[1746487406968,7.7545606,1833.0,1832.6,7.85488891]
[1746487406969,5.45582362,1833.0,1832.7,5.45640629]
[1746487407165,6.23826389,1833.4,1832.9,0.13065658]
[1746487407374,5.45477275,1833.3,1832.9,6.2065697]
[1746487407574,5.45477275,1833.3,1833.0,0.13042759]
[1746487407797,8.37736701,1833.3,1833.0,0.13042759]
[1746487407985,5.45504856,1833.2,1833.0,0.13042759]
[1746487408294,8.37744051,1833.3,1833.0,0.13042759]
[1746487408497,5.45505159,1833.2,1833.0,0.13042759]
[1746487408902,8.37744051,1833.3,1833.0,0.13042759]
[1746487409298,27.99562915,1833.6,1833.0,0.13042759]
[1746487409299,3.0,1833.5,1833.1,0.7509]
[1746487409473,5.45449366,1833.4,1833.1,0.7509]
[1746487409675,5.45449366,1833.4,1833.2,0.12963506]
[1746487412106,3.41706547,1833.7,1833.2,0.12963506]
[1746487412282,4.78181674,1833.9,1833.6,5.45361768]
[1746487412485,4.78181674,1833.9,1833.8,6.27315737]
[1746487412699,4.78181674,1833.9,1833.8,6.32768704]
[1746487412902,4.78181674,1833.9,1833.8,0.94725852]
[1746487413222,4.78181674,1833.9,1833.8,0.82]
[1746487413427,4.78181674,1833.9,1833.8,6.27315737]
[1746487413568,4.78181674,1833.9,1833.8,6.40041589]
[1746487416313,4.78181674,1834.2,1833.9,5.45275929]
[1746487416482,5.99660717,1834.2,1833.9,5.45275929]
[1746487416813,4.78181674,1834.2,1834.0,5.57901446]
[1746487417225,4.78181674,1834.2,1834.0,0.12646668]
[1746487417991,5.45226541,1834.1,1834.0,0.12646668]
[1746487418207,5.45226541,1834.1,1833.8,0.82]
[1746487418408,5.45226541,1834.1,1834.0,0.12195143]
[1746487418609,5.45226541,1834.1,1833.9,0.12234733]
[1746487418823,5.45226541,1834.1,1833.8,0.82]
[1746487418824,5.45226541,1834.1,1834.0,0.12195143]
[1746487419130,5.45226541,1834.1,1833.8,0.82]
[1746487419326,5.45226541,1834.1,1833.9,0.12234733]
[1746487419529,5.45226541,1834.1,1833.8,1.8991423]
[1746487419697,5.45226541,1834.1,1833.9,0.12234733]
[1746487420032,5.45226541,1834.1,1833.8,1.8991423]
[1746487420324,5.45226541,1834.1,1833.9,0.12234733]
[1746487420631,5.45226541,1834.1,1833.8,1.8991423]
[1746487420817,5.45226541,1834.1,1834.0,0.12195143]
[1746487420995,5.45226541,1834.1,1833.9,0.12234733]
[1746487421195,5.45226541,1834.1,1833.8,1.8991423]
[1746487421407,5.45239158,1834.1,1833.9,0.12234733]
[1746487421728,5.45239158,1834.1,1833.8,1.0791423]
[1746487421932,5.45239158,1834.1,1833.9,0.12234733]
[1746487422099,5.45239158,1834.1,1833.8,1.0791423]
[1746487422298,5.45239158,1834.1,1833.9,0.12234733]
[1746487422506,5.45239158,1834.1,1833.8,1.0791423]
[1746487422701,5.45239158,1834.1,1833.9,0.12234733]
[1746487423026,5.45239158,1834.1,1833.8,1.0791423]
[1746487423237,5.45239158,1834.1,1834.0,0.12195143]
[1746487423392,5.45239158,1834.1,1833.9,0.12234733]
[1746487423593,5.45239158,1834.1,1833.7,10.02596332]
[1746487423925,5.45239158,1834.1,1833.8,0.12274327]
[1746487424534,10.90492651,1834.1,1833.8,0.12274327]
[1746487424821,5.45256897,1834.0,1833.8,0.12274327]
[1746487425023,5.45286002,1833.9,1833.8,0.12274327]
[1746487425215,5.45276211,1834.0,1833.8,0.12274327]
[1746487425394,6.54327897,1834.0,1833.8,0.12274327]
[1746487426326,5.45286002,1833.9,1833.8,0.12274327]
[1746487426621,6.54327343,1834.0,1833.8,0.12274327]
[1746487426927,5.45286002,1833.9,1833.8,0.12274327]
[1746487428031,8.84202336,1834.0,1833.8,0.12274327]
[1746487428233,5.45276952,1834.0,1833.8,0.12274327]
[1746487429108,5.45276952,1834.0,1833.9,0.8062]
[1746487429326,5.45276952,1834.0,1833.9,0.93886657]
[1746487429608,5.45276952,1834.0,1833.9,0.13266657]
[1746487430007,5.45276952,1834.0,1833.7,0.8062]
[1746487430238,5.45276952,1834.0,1833.9,0.13266657]
[1746487430438,5.45276952,1834.0,1833.8,0.1331417]
[1746487430637,5.45229956,1834.1,1833.9,0.13266657]
[1746487430812,6.62024065,1834.1,1833.9,0.13266657]
[1746487431013,6.62024065,1834.1,1833.7,6.25944932]
[1746487431219,5.45213716,1834.2,1834.0,0.13219149]
[1746487431410,7.75057685,1834.3,1833.8,5.4530324]
[1746487431610,7.75057685,1834.3,1834.1,0.13171647]
[1746487431611,5.45218507,1834.2,1834.1,0.13171647]
[1746487431809,5.45230374,1834.1,1833.7,6.25946909]
[1746487432029,7.75050797,1834.3,1833.9,5.45271639]
[1746487432227,8.35953167,1834.3,1833.9,6.23421639]
[1746487432432,8.35953167,1834.3,1834.0,0.13219149]
[1746487433053,5.45202682,1834.2,1834.0,0.13219149]
[1746487433257,5.45226541,1834.1,1834.0,0.13219149]
[1746487433566,5.45265815,1834.0,1833.7,0.8012]
[1746487433715,5.45265815,1834.0,1833.8,0.1331417]
[1746487434358,10.90546251,1834.0,1833.8,0.1331417]
[1746487434719,5.45265815,1834.0,1833.8,0.1331417]
[1746487435957,5.45212073,1834.2,1833.8,5.64077188]
[1746487436123,5.45212073,1834.2,1833.8,6.77577228]
[1746487436754,10.90432845,1834.2,1833.8,6.77577228]
[1746487437131,5.45226567,1834.1,1833.8,6.77577228]
[1746487437540,5.45226567,1834.1,1833.8,1.32267158]
[1746487437852,3.7867,1834.3,1833.8,0.1331417]
[1746487438039,5.45244566,1834.1,1833.8,0.1331417]
[1746487439619,5.45139185,1834.4,1833.9,0.7727]
[1746487439620,5.45158908,1834.4,1833.9,0.7727]
[1746487439955,5.45158908,1834.4,1834.0,5.58471271]
[1746487440119,7.83651512,1834.4,1834.0,5.58471271]
[1746487440318,7.75041495,1834.3,1834.0,0.13219149]
[1746487440517,5.45226541,1834.1,1834.0,0.13219149]
[1746487440720,6.22846995,1834.2,1833.8,5.45315207]
[1746487441034,7.6263744,1834.2,1833.9,0.13266657]
[1746487441239,7.6263744,1834.2,1833.9,6.34238488]
[1746487441240,1.39790445,1834.2,1833.9,6.34238488]
[1746487441439,7.75058509,1834.3,1833.9,6.20971831]
[1746487441639,7.75058509,1834.3,1834.0,0.16523937]
[1746487442454,13.20248758,1834.3,1834.0,0.16523937]
[1746487442953,7.75058509,1834.3,1834.0,0.16523937]
[1746487443361,15.69117113,1834.5,1834.1,6.20899352]
[1746487443545,1.56911711,1834.4,1834.2,0.16279825]
[1746487444559,1.56911711,1834.4,1834.2,5.61473978]
[1746487444725,15.69117113,1834.5,1834.2,0.16279825]
[1746487448485,0.801,1835.0,1834.3,0.8187]
[1746487448650,5.45058339,1834.7,1834.3,6.27020775]
[1746487448975,5.45097651,1834.6,1834.4,0.15910411]
[1746487449272,9.64046553,1834.7,1834.4,0.15910411]
[1746487449477,7.74981356,1834.5,1834.4,0.15910411]
[1746487449783,14.0021373,1834.5,1834.2,4.515]
[1746487449988,8.55081356,1834.5,1834.3,0.1596977]
[1746487450168,9.95098898,1834.5,1834.3,0.1596977]
[1746487450558,15.40234414,1834.5,1834.3,0.1596977]
[1746487450760,5.45137374,1834.4,1834.3,0.1596977]
[1746487452279,9.95113893,1834.5,1834.3,0.1596977]
[1746487452480,9.95114231,1834.5,1834.3,0.1596977]
[1746487452689,15.40247574,1834.5,1834.3,0.1596977]
[1746487452983,9.95114231,1834.5,1834.3,0.1596977]
[1746487454686,0.99511423,1834.4,1834.3,0.1596977]
[1746487454888,7.19798797,1834.4,1834.3,0.1596977]
[1746487455261,5.4521972,1834.2,1833.8,5.45314095]
[1746487455460,6.25939262,1834.1,1833.7,10.79535795]
[1746487455765,6.25939262,1834.1,1833.7,5.3421]
[1746487455979,5.45269399,1834.0,1833.7,10.79551342]
[1746487456179,2.29873698,1833.9,1833.5,0.7681]
[1746487456406,6.2604558,1833.8,1833.4,6.22244354]
[1746487456692,5.45359325,1833.7,1833.4,0.7681]
[1746487456859,6.26045167,1833.8,1833.4,6.22241508]
[1746487458997,5.45302544,1833.9,1833.5,5.4540354]
[1746487459687,5.45302544,1833.9,1833.4,7.84145552]
[1746487459998,6.91009684,1834.0,1833.5,5.45403837]
[1746487460301,10.90611208,1833.9,1833.5,5.45403837]
[1746487461077,5.45300773,1833.9,1833.5,5.45403837]
[1746487461695,6.6893135,1833.9,1833.5,5.45403837]
[1746487461897,5.45316866,1833.8,1833.4,6.222252]
[1746487462401,5.45346349,1833.7,1833.4,6.222252]
[1746487462704,5.45388063,1833.6,1833.3,4.515]
[1746487463004,5.45388063,1833.6,1833.3,9.969634]
[1746487463299,6.21894946,1833.7,1833.3,9.969634]
[1746487464197,5.45386103,1833.6,1833.3,4.515]
[1746487464380,10.90794543,1833.6,1833.3,4.515]
[1746487464576,6.62122255,1833.6,1833.3,4.515]
[1746487464891,5.45389801,1833.6,1833.3,4.515]
[1746487466082,6.21889804,1833.7,1833.3,9.96962302]
[1746487466804,11.67264359,1833.7,1833.3,9.96962302]
[1746487467306,5.45380011,1833.6,1833.3,4.515]
[1746487467499,5.45434711,1833.4,1833.1,4.534]
[1746487467895,5.45466426,1833.3,1833.1,4.534]
[1746487468097,5.45434711,1833.4,1833.1,4.534]
[1746487468903,5.45471455,1833.3,1833.1,4.534]
[1746487469092,5.45548281,1833.1,1832.8,5.2997]
[1746487469618,5.45571638,1833.0,1832.8,4.534]
[1746487470877,5.45541028,1833.1,1832.8,4.534]
[1746487471707,5.4551157,1833.2,1832.8,9.99001396]
[1746487472410,5.4554276,1833.1,1832.8,4.534]
[1746487472610,5.45555528,1833.0,1832.8,4.534]
[1746487474790,5.45578403,1833.0,1832.8,4.534]
[1746487476429,5.45583501,1832.9,1832.8,4.534]
[1746487476728,5.45578403,1833.0,1832.8,4.68787762]
[1746487476729,5.45567969,1833.0,1832.8,4.68787762]
[1746487479713,5.45573526,1833.0,1832.8,4.68787762]
[1746487480808,5.45494217,1833.2,1832.8,4.68787762]
[1746487481153,5.45583501,1832.9,1832.8,4.68787762]
[1746487481501,5.45583501,1832.9,1832.8,0.15387762]
[1746487488548,5.45569024,1833.0,1832.8,0.15387762]
[1746487489139,10.91145721,1833.0,1832.8,0.15387762]
[1746487489440,5.45569024,1833.0,1832.8,0.15387762]
[1746487494261,6.85387461,1833.0,1832.8,0.15387762]
[1746487495343,5.45569024,1833.0,1832.8,0.15387762]
[1746487501489,10.91086529,1833.1,1832.8,0.15387762]
[1746487501688,5.45539543,1833.1,1832.8,0.15387762]
[1746487501864,5.45555477,1833.0,1832.8,0.15387762]
[1746487502675,5.45543546,1833.1,1832.8,0.15387762]
[1746487502871,11.68637365,1833.1,1832.8,0.15387762]
[1746487503211,6.2308527,1833.1,1832.8,0.15387762]
[1746487503386,11.68637384,1833.1,1832.8,0.15387762]
[1746487503792,6.25063501,1832.9,1832.8,0.15387762]
[1746487504110,0.7948,1832.7,1832.3,5.3219]
[1746487504281,5.45732372,1832.4,1832.2,5.3219]
[1746487504487,6.25212372,1832.4,1832.2,4.528]
[1746487505077,5.45717243,1832.5,1832.2,4.528]
[1746487505078,5.45719529,1832.5,1832.2,4.528]
[1746487505276,6.85795693,1832.5,1832.2,4.528]
[1746487506713,1.40076164,1832.5,1832.2,9.98582746]
[1746487507126,0.7948,1832.6,1832.3,5.45757595]
[1746487507292,5.45661671,1832.7,1832.3,6.22727595]
[1746487508794,5.4567466,1832.6,1832.3,0.7697]
[1746487510224,5.4567466,1832.6,1832.3,6.22729219]
[1746487511635,6.00242126,1832.6,1832.3,0.7697]
[1746487515032,0.54567466,1832.6,1832.3,0.7697]
[1746487515207,5.4564495,1832.7,1832.3,6.22711628]
[1746487515724,5.4564495,1832.7,1832.3,6.2270969]
[1746487515919,5.4564495,1832.7,1832.3,11.68453796]
[1746487516100,10.91315366,1832.7,1832.3,6.2270969]
[1746487516299,5.4564495,1832.7,1832.3,6.2270969]
[1746487516496,7.2158383,1832.7,1832.3,6.2270969]
[1746487516736,7.2158383,1832.7,1832.3,11.68459549]
[1746487517033,7.2158383,1832.7,1832.3,6.2270969]
[1746487518934,5.45673767,1832.6,1832.3,6.2270969]
[1746487519132,5.45673767,1832.6,1832.3,0.7697]
[1746487521139,6.72401011,1832.6,1832.3,0.7697]
[1746487524426,5.45705251,1832.5,1832.3,0.7697]
[1746487524625,5.45709019,1832.5,1832.3,0.7697]
[1746487524954,5.45709019,1832.5,1831.9,5.2901]
[1746487524955,5.45762156,1832.3,1831.9,5.2901]
[1746487525120,0.54576216,1832.2,1831.9,10.74871469]
[1746487525326,5.45762156,1832.3,1831.9,10.74871469]
[1746487525742,5.45762156,1832.3,1831.9,16.2073238]
[1746487526028,5.45762156,1832.3,1832.0,5.45850574]
[1746487528061,5.45792841,1832.2,1831.9,5.2901]
[1746487528261,2.29873698,1832.2,1831.7,5.3324]
[1746487528432,5.45920923,1831.8,1831.5,18.8624]
[1746487528764,5.45920923,1831.8,1831.6,0.20349489]
[1746487528964,5.45899069,1831.9,1831.6,0.20349489]
[1746487529334,5.45899069,1831.9,1831.5,11.73215855]
[1746487530335,5.45899069,1831.9,1831.5,6.27218956]
[1746487530734,5.45899069,1831.9,1831.5,6.2721844]
[1746487530735,6.8618314,1831.9,1831.5,6.2721844]
[1746487531758,6.8618314,1831.9,1831.5,11.73199185]
[1746487531960,6.8618314,1831.9,1831.5,11.73197164]
[1746487532166,6.8618314,1831.9,1831.5,6.2721844]
[1746487532569,5.45913226,1831.8,1831.5,6.2721844]
[1746487532752,6.86185766,1831.9,1831.5,6.2721844]
[1746487534875,6.86185766,1831.9,1831.5,0.8124]
[1746487535053,6.86185766,1831.9,1831.6,5.45969019]
[1746487537275,6.14546388,1831.8,1831.5,0.8124]
[1746487537501,5.45956521,1831.7,1831.4,9.98029289]
[1746487537654,6.14551183,1831.8,1831.4,9.98029289]
[1746487538400,0.68618577,1831.8,1831.5,6.25298564]
[1746487539073,10.91803348,1831.9,1831.5,6.25298564]
[1746487539074,5.4589814,1831.9,1831.5,6.25298564]
[1746487539896,10.91802838,1831.9,1831.5,6.25298564]
[1746487540195,5.45914077,1831.8,1831.5,6.25298564]
[1746487540566,5.45914077,1831.8,1831.5,0.793]
[1746487542302,5.45914077,1831.8,1831.5,6.25297158]
[1746487542607,5.459023,1831.9,1831.5,6.25297158]
[1746487542775,6.86186781,1831.9,1831.5,6.25297158]
[1746487544304,5.45912229,1831.8,1831.5,6.25297158]
[1746487544606,6.86186781,1831.9,1831.5,6.25297158]
[1746487544889,12.32091478,1831.9,1831.5,6.25297158]
[1746487545062,6.86186781,1831.9,1831.5,6.25297158]
[1746487546301,5.45917147,1831.8,1831.5,6.25297158]
[1746487547807,6.86183942,1831.9,1831.5,6.25297158]
[1746487548205,5.45914223,1831.8,1831.5,6.25297158]
[1746487549110,6.86183942,1831.9,1831.5,6.25297158]
[1746487549599,6.86183942,1831.9,1831.5,0.793]
[1746487549795,5.45899461,1831.9,1831.6,5.45967518]
[1746487550002,5.45899461,1831.9,1831.5,6.25281978]
[1746487550718,5.45916942,1831.8,1831.5,6.25281978]
[1746487551013,5.45916942,1831.8,1831.5,0.793]
[1746487551994,5.45916942,1831.8,1831.5,6.25298558]
[1746487557410,5.45916942,1831.8,1831.5,0.793]
[1746487558319,5.45916942,1831.8,1831.5,6.25300152]
[1746487558713,5.45916942,1831.8,1831.5,0.793]
[1746487560729,1.09180671,1831.8,1831.5,0.793]
[1746487561031,5.45924567,1831.8,1831.4,6.26166918]
[1746487561529,10.91859001,1831.8,1831.4,6.26166918]
[1746487561707,5.4594332,1831.7,1831.4,6.26166918]
[1746487561907,5.4594332,1831.7,1831.4,0.8015]
[1746487564728,5.4594332,1831.7,1831.4,6.26178886]
[1746487564931,6.55130169,1831.7,1831.4,0.8015]
[1746487566224,5.45981191,1831.6,1831.4,0.8015]
[1746487567542,6.55148333,1831.7,1831.4,0.8015]
[1746487567744,1.09186849,1831.7,1831.4,0.8015]
[1746487567949,1.09186849,1831.7,1831.4,6.26175478]
[1746487568252,6.55130299,1831.7,1831.4,0.8015]
[1746487568542,1.09186849,1831.7,1831.4,0.8015]
[1746487568715,5.45923366,1831.8,1831.4,6.26163457]
[1746487569250,10.91860305,1831.8,1831.4,6.26163457]
[1746487569416,5.45945875,1831.7,1831.4,0.8015]
[1746487569617,5.45945875,1831.7,1831.4,6.26180211]
[1746487570024,5.45970763,1831.6,1831.4,0.8015]
[1746487570231,0.54597076,1831.5,1831.3,4.522]
[1746487570418,5.45970763,1831.6,1831.3,4.522]
[1746487571559,3.0,1831.5,1830.6,0.7507]
[1746487571859,5.46220694,1830.8,1830.6,0.7507]
[1746487572062,5.46222864,1830.8,1830.5,3.65831772]
[1746487572263,7.76068289,1830.9,1830.5,3.65831772]
[1746487572546,10.92462663,1830.8,1830.5,3.65831772]
[1746487572727,5.46224872,1830.8,1830.5,3.65831772]
[1746487572933,5.46241265,1830.7,1830.5,3.65831772]
[1746487573263,10.92462885,1830.8,1830.5,3.65831772]
[1746487573461,5.4625378,1830.7,1830.5,3.65831772]
[1746487574039,7.76067696,1830.9,1830.5,3.65831772]
[1746487574040,5.46229086,1830.8,1830.5,3.65831772]
[1746487575454,5.46213611,1830.8,1830.5,3.65831772]
[1746487576220,5.46226518,1830.8,1830.5,3.65831772]
[1746487576418,5.46268982,1830.6,1830.5,3.65831772]
[1746487576969,5.46239143,1830.7,1830.5,3.65831772]
[1746487577164,5.46268982,1830.6,1830.5,3.65831772]
[1746487577821,5.46261632,1830.7,1830.5,3.65831772]
[1746487578861,6.24758982,1830.6,1830.5,3.65831772]
[1746487579075,10.64848413,1830.6,1830.5,3.65831772]
[1746487581933,11.19848413,1830.6,1830.5,3.65831772]
[1746487584431,10.41358413,1830.6,1830.5,3.65831772]
[1746487584671,11.16578413,1830.6,1830.5,3.65831772]
[1746487587868,23.70452111,1830.6,1830.5,0.47475903]
[1746487588070,5.46418228,1830.1,1830.0,4.75581303]
[1746487588379,11.57081926,1830.1,1830.0,4.75581303]
[1746487590091,8.46418228,1830.1,1830.0,4.75581303]
[1746487590448,8.86998516,1830.1,1830.0,4.75581303]
[1746487590689,5.46494975,1829.9,1829.7,0.7973]
[1746487590849,5.70453986,1830.1,1829.7,0.7973]
[1746487590850,3.0,1830.0,1829.7,0.7973]
[1746487591049,5.46501756,1829.9,1829.7,0.7973]
[1746487592609,2.29873698,1829.9,1829.5,0.7973]
[1746487592808,5.46532843,1829.8,1829.5,6.26327126]
[1746487593005,0.5298737,1829.9,1829.5,6.2630867]
[1746487593160,0.5298737,1829.9,1829.6,5.46556311]
[1746487593899,0.5298737,1829.9,1829.7,5.46519441]
[1746487594106,13.24,1830.0,1829.8,0.8136]
[1746487594413,18.70457314,1830.0,1829.8,0.8136]
[1746487595779,24.16931969,1830.0,1829.6,6.29744864]
[1746487596089,18.70457314,1830.0,1829.6,6.2973727]
[1746487596294,8.46457314,1830.0,1829.6,6.2973727]
[1746487596795,8.4645204,1830.0,1829.7,5.46530798]
[1746487597164,3.0,1830.0,1829.7,5.46530798]
[1746487597581,8.46449104,1830.0,1829.6,6.2973954]
[1746487597784,3.0,1830.0,1829.7,5.46523637]
[1746487598283,8.46450581,1830.0,1829.7,5.46523637]
[1746487598484,8.46450581,1830.0,1829.6,6.29733183]
[1746487598685,10.27904539,1830.0,1829.6,6.29733183]
[1746487599121,10.27904539,1830.0,1829.7,5.46537494]
[1746487599419,10.2790515,1830.0,1829.7,5.46537494]
[1746487599815,0.7678,1830.2,1829.6,0.88655377]
[1746487600013,8.46403737,1830.2,1829.9,0.7944]
[1746487600404,5.46403737,1830.2,1829.9,0.7944]
[1746487600718,8.46403737,1830.2,1829.9,0.7944]
[1746487604116,13.92819376,1830.2,1829.9,0.7944]
[1746487604417,16.61579324,1830.2,1829.9,0.7944]
[1746487604624,11.15163879,1830.2,1829.9,0.7944]
[1746487606626,16.61579983,1830.2,1829.9,0.7944]
[1746487606928,16.61576161,1830.2,1829.9,0.7944]
[1746487607106,11.15163879,1830.2,1829.9,0.7944]
[1746487607508,5.46430612,1830.1,1829.9,0.7944]
[1746487607710,7.12590061,1830.1,1829.9,0.7944]
[1746487608006,9.42463759,1830.1,1829.9,0.7944]
[1746487608731,5.46459865,1830.0,1829.7,0.8018]
[1746487609420,5.46491139,1829.9,1829.6,0.8018]
[1746487609618,5.46491139,1829.9,1829.6,6.26747342]
[1746487609996,8.85661232,1829.9,1829.6,0.8018]
[1746487612035,3.39168798,1829.9,1829.6,6.26743943]
[1746487613140,1.092951,1829.9,1829.6,6.26743943]
[1746487613314,10.92935553,1830.0,1829.6,6.26743943]
[1746487613514,5.46480398,1829.9,1829.6,6.26743943]
[1746487613716,5.46508124,1829.8,1829.6,0.8018]
[1746487614013,5.46480398,1829.9,1829.6,0.8018]
[1746487614214,6.6335286,1829.9,1829.6,0.8018]
[1746487614642,1.16872462,1829.9,1829.6,0.8018]
[1746487614815,1.16872462,1829.9,1829.6,6.2673083]
[1746487615241,1.16872462,1829.9,1829.6,11.73279046]
[1746487615547,1.16872462,1829.9,1829.7,5.46537531]
[1746487615723,5.46464221,1830.0,1829.7,5.46537531]
[1746487615921,2.29873698,1829.8,1828.6,0.68745169]
[1746487616146,2.29873698,1829.3,1828.8,0.7959]
[1746487616444,3.07203698,1829.6,1828.9,6.31822057]
[1746487616642,8.46615806,1829.5,1829.0,0.7959]
[1746487616842,8.46615806,1829.5,1829.1,0.7959]
[1746487617043,3.0,1829.5,1829.1,0.7959]
[1746487617223,3.95757039,1829.6,1829.1,0.7959]
[1746487617417,9.42351763,1829.6,1829.1,0.7959]
[1746487617613,5.4659743,1829.5,1829.1,0.7959]
[1746487617818,5.46650998,1829.4,1829.1,0.7959]
[1746487618413,7.76490526,1829.5,1829.1,0.7959]
[1746487618723,5.46627821,1829.4,1829.1,0.7959]
[1746487620459,5.46669916,1829.3,1829.1,0.7959]
[1746487620755,5.46646521,1829.4,1829.1,0.7959]
[1746487621043,9.48367523,1829.5,1829.1,0.7959]
[1746487621232,9.48367523,1829.5,1829.1,6.26304283]
[1746487621762,9.42340767,1829.6,1829.2,5.46672022]
[1746487621973,9.12131542,1829.8,1829.3,6.27084052]
[1746487622261,9.12131542,1829.8,1829.4,0.8043]
[1746487622421,9.12131542,1829.8,1829.4,6.27054891]
[1746487623020,14.58664663,1829.8,1829.4,6.27054891]
[1746487623262,3.65611206,1829.8,1829.5,5.4659638]
[1746487623561,9.12123317,1829.8,1829.6,0.8063]
[1746487624242,11.41997015,1829.8,1829.6,0.8063]
[1746487626649,7.76385809,1829.8,1829.6,0.8063]
[1746487628898,5.46537683,1829.7,1829.6,0.8063]
[1746487629563,7.76398814,1829.8,1829.6,0.8063]
[1746487630266,9.0868797,1829.8,1829.6,0.8063]
[1746487633064,3.62162854,1829.8,1829.6,0.8063]
[1746487633267,2.29873698,1829.8,1829.6,0.8063]
[1746487637149,2.29873698,1829.8,1829.6,6.27195372]
[1746487637347,2.29873698,1829.8,1829.6,0.8063]
[1746487638359,7.76391352,1829.8,1829.6,0.8063]
[1746487642652,2.29873698,1829.8,1829.6,0.8063]
[1746487644897,7.76338301,1830.0,1829.6,6.27167736]
[1746487645084,9.91792185,1830.0,1829.6,6.27167736]
[1746487645270,5.46478974,1829.9,1829.6,6.27167736]
[1746487645684,5.46478974,1829.9,1829.6,0.8063]
[1746487646803,9.1203894,1830.1,1829.8,5.46500911]
[1746487646975,9.1203894,1830.1,1829.7,5.46515012]
[1746487646976,5.95484904,1830.1,1829.7,5.46515012]
[1746487647174,5.95484904,1830.1,1829.6,0.86094832]
[1746487647387,11.41914961,1830.1,1829.7,5.46522305]
[1746487647588,13.18819534,1830.1,1829.7,5.46522305]
[1746487647788,13.18819534,1830.1,1829.7,5.46515981]
[1746487650005,13.18819534,1830.1,1829.7,10.93036187]
[1746487650200,13.18819534,1830.1,1829.7,5.46515981]
[1746487650792,9.53208328,1830.1,1829.7,5.46515981]
[1746487650988,4.06778271,1830.1,1829.8,5.46505672]
[1746487651193,7.76300604,1830.1,1829.8,5.46505672]
[1746487651581,7.76300604,1830.1,1829.7,5.46517472]
[1746487652765,7.76300604,1830.1,1829.7,10.93037374]
[1746487652966,7.76300604,1830.1,1829.7,5.46517472]
[1746487653708,7.76300604,1830.1,1829.7,10.93037439]
[1746487653881,7.76300604,1830.1,1829.8,5.4650626]
[1746487654084,9.53206432,1830.1,1829.8,5.4650626]
[1746487654305,9.53206432,1830.1,1829.7,10.93035008]
[1746487654510,9.53206432,1830.1,1829.7,5.46517472]
[1746487654909,9.53206432,1830.1,1829.7,10.9303702]
[1746487655211,9.53206432,1830.1,1829.7,5.46516248]
[1746487655610,9.53206432,1830.1,1829.8,5.46507657]
[1746487656712,9.53206432,1830.1,1829.7,10.93032781]
[1746487657111,9.53206432,1830.1,1829.7,10.93031549]
[1746487657277,9.53206432,1830.1,1829.7,5.46515301]
[1746487657478,9.53206432,1830.1,1829.7,10.93032409]
[1746487657681,9.53206432,1830.1,1829.7,5.46515301]
[1746487657977,9.53206432,1830.1,1829.7,10.93031156]
[1746487658477,9.53206432,1830.1,1829.8,5.46504949]
[1746487659911,9.53200851,1830.1,1829.8,5.46504949]
[1746487664518,4.06779526,1830.1,1829.8,5.46504949]
[1746487665413,9.92731096,1830.2,1829.8,5.46489394]
[1746487665712,9.92731096,1830.2,1829.8,5.46487907]
[1746487666323,4.46341206,1830.2,1829.9,5.46462134]
[1746487666522,4.46341206,1830.2,1829.9,5.46458501]
[1746487667026,4.46341206,1830.2,1830.0,5.46444873]
[1746487667222,4.46341206,1830.2,1829.8,6.21729575]
[1746487667428,4.46341206,1830.2,1829.9,5.46463094]
[1746487667837,9.927315,1830.2,1829.9,5.46463094]
[1746487668329,7.763094,1830.1,1829.7,5.46515419]
[1746487668927,7.763094,1830.1,1829.7,10.93030838]
[1746487669330,7.763094,1830.1,1829.8,5.46504079]
[1746487669537,4.06778934,1830.1,1829.8,5.46504079]
[1746487672130,9.5319795,1830.1,1829.8,5.46504079]
[1746487675930,0.3058626,1830.0,1829.8,5.46504079]
[1746487676632,0.3058626,1829.9,1829.8,5.46504079]
[1746487686215,0.3058626,1829.9,1829.8,6.27084079]
[1746487686711,0.3058626,1829.9,1829.8,6.32548439]
[1746487687349,0.3058626,1829.9,1829.8,6.27084079]
[1746487688245,0.3058626,1829.9,1829.8,5.46504079]
[1746487692722,1.1185626,1829.9,1829.6,10.04254391]
[1746487692922,1.1185626,1829.9,1829.6,10.04246907]
[1746487693241,1.1185626,1829.9,1829.7,5.46531822]
[1746487694035,0.3058626,1829.8,1829.7,5.46531822]
[1746487696660,0.8127,1829.9,1829.7,5.46531822]
[1746487696862,0.30599177,1829.8,1829.7,5.46531822]
[1746487697562,0.30599177,1829.8,1829.6,5.46546907]
[1746487698326,0.30599177,1829.7,1829.6,5.46546907]
[1746487700871,0.30599177,1829.7,1829.5,5.46590833]
[1746487701072,0.30599177,1829.7,1829.5,5.46577016]
[1746487701774,0.30599177,1829.6,1829.5,5.46577016]